bitfinex/quotes_SOLUSD_20251202
["timestamp","ask_amount","ask_price","bid_price","bid_amount"]
[1764641083313,20.81744558,127.21,127.16,0.71]
[1764641083499,9.39,127.21,127.18,16.308864]
[1764641083998,9.39,127.21,127.18,17.018864]
[1764641084305,12.26625479,127.21,127.18,16.308864]
[1764641084489,12.95625479,127.21,127.18,17.018864]
[1764641085509,12.95625479,127.21,127.18,24.17143355]
[1764641086118,12.95625479,127.21,127.18,24.88143355]
[1764641086717,9.39,127.21,127.18,24.88143355]
[1764641087422,8.7,127.21,127.18,24.88143355]
[1764641087924,9.39,127.21,127.18,24.88143355]
[1764641088218,11.4267921,127.22,127.19,24.88104815]
[1764641088424,17.25053731,127.22,127.19,24.88104815]
[1764641088922,20.8167921,127.22,127.19,24.88104815]
[1764641089113,12.95625479,127.22,127.19,24.88104815]
[1764641090222,20.81668073,127.22,127.19,24.88104815]
[1764641090424,17.25042594,127.22,127.19,24.88104815]
[1764641090819,20.12668073,127.22,127.19,16.308864]
[1764641091125,3.56625479,127.2,127.19,16.308864]
[1764641091325,3.56625479,127.2,127.16,8.57370343]
[1764641091620,7.86042594,127.22,127.17,0.71]
[1764641091823,3.56625479,127.23,127.19,16.308864]
[1764641092124,20.81605596,127.23,127.19,16.308864]
[1764641092326,0.69,127.22,127.19,17.018864]
[1764641092622,0.69,127.22,127.19,8.57201827]
[1764641092926,0.69,127.22,127.2,16.308864]
[1764641095423,0.69,127.22,127.19,18.108864]
[1764641095424,12.11672694,127.22,127.19,18.108864]
[1764641095626,3.56625479,127.21,127.19,18.108864]
[1764641095830,4.25625479,127.21,127.19,18.108864]
[1764641096730,0.14216157,127.25,127.2,0.71]
[1764641096930,8.7,127.23,127.2,1.8]
[1764641097130,8.7,127.23,127.2,10.37154443]
[1764641097325,9.39,127.23,127.2,10.37154443]
[1764641098920,12.95625479,127.23,127.2,10.37154443]
[1764641099531,20.81613581,127.23,127.2,10.37154443]
[1764641099729,0.69,127.22,127.21,16.308864]
[1764641100931,4.25625479,127.22,127.21,16.308864]
[1764641101529,0.69,127.22,127.21,16.308864]
[1764641101741,7.85731122,127.27,127.21,20.83721259]
[1764641101914,0.69,127.28,127.25,16.308864]
[1764641102359,0.69,127.28,127.25,17.018864]
[1764641102618,12.26625479,127.27,127.25,16.308864]
[1764641102935,7.8562011,127.29,127.26,17.018864]
[1764641103237,8.5462011,127.29,127.26,16.308864]
[1764641103441,0.69,127.28,127.26,16.308864]
[1764641104542,11.42245589,127.29,127.26,16.308864]
[1764641104726,8.5462011,127.29,127.26,17.018864]
[1764641105035,0.69,127.29,127.26,24.87623959]
[1764641105240,0.2,127.3,127.27,0.71]
[1764641105741,0.89,127.3,127.27,0.71]
[1764641106039,0.89,127.3,127.27,8.56676975]
[1764641108136,3.56625479,127.28,127.26,18.108864]
[1764641108338,12.26625479,127.28,127.26,18.108864]
[1764641108546,9.39,127.28,127.26,18.108864]
[1764641108933,8.05554017,127.3,127.26,18.108864]
[1764641108934,0.2,127.3,127.27,0.71]
[1764641109257,0.2,127.3,127.27,8.56692856]
[1764641109457,0.2,127.3,127.27,12.13318335]
[1764641109645,0.2,127.3,127.28,0.71]
[1764641109960,0.2,127.3,127.29,16.308864]
[1764641110254,0.2,127.3,127.29,19.87511879]
[1764641110428,0.2,127.3,127.29,20.58511879]
[1764641111244,0.2,127.3,127.29,28.44119546]
[1764641111442,0.2,127.3,127.29,45.95114038]
[1764641111656,1e-08,127.3,127.29,47.79330195]
[1764641111957,1e-08,127.31,127.3,0.84216157]
[1764641112145,1e-08,127.31,127.3,4.40841636]
[1764641112519,1e-08,127.31,127.3,13.07619971]
[1764641112751,1e-08,127.31,127.29,11.00357637]
[1764641112950,1e-08,127.31,127.3,16.308864]
[1764641114248,1e-08,127.31,127.3,24.16432354]
[1764641115032,4.2462548,127.31,127.3,16.308864]
[1764641115781,4.2462548,127.31,127.26,19.64456014]
[1764641115925,3.56625479,127.29,127.27,7.85731122]
[1764641116120,4.24625479,127.3,127.29,16.308864]
[1764641117026,12.10171433,127.3,127.25,7.85845121]
[1764641117226,3.56625479,127.28,127.25,7.85845121]
[1764641117441,3.56625479,127.28,127.27,16.308864]
[1764641117641,4.24625479,127.28,127.27,16.308864]
[1764641118440,0.68,127.28,127.27,16.308864]
[1764641118642,10.60367613,127.28,127.27,16.308864]
[1764641119426,18.46037003,127.28,127.23,7.85963966]
[1764641119648,9.92367613,127.26,127.23,7.85963966]
[1764641119947,9.92367613,127.27,127.25,16.308864]
[1764641120147,10.60367613,127.27,127.25,16.308864]
[1764641120850,10.60367613,127.26,127.19,39.29423666]
[1764641121027,9.92367613,127.23,127.2,0.7]
[1764641121354,9.92367613,127.22,127.2,7.86163522]
[1764641121555,9.92367613,127.21,127.18,0.7]
[1764641122058,9.92367613,127.2,127.17,19.65822724]
[1764641122242,9.92367613,127.2,127.17,20.35822724]
[1764641122560,9.92367613,127.2,127.18,7.86241655]
[1764641122767,9.92367613,127.2,127.18,0.7]
[1764641122964,9.92367613,127.2,127.19,16.308864]
[1764641124150,8.7,127.21,127.19,16.308864]
[1764641124151,18.62367613,127.21,127.19,16.308864]
[1764641124468,18.62367613,127.21,127.16,47.18388587]
[1764641124469,9.92367613,127.2,127.16,8.56410821]
[1764641124762,9.29,127.21,127.17,0.7]
[1764641124763,9.92367613,127.19,127.17,0.7]
[1764641125054,9.92367613,127.19,127.17,17.008864]
[1764641125429,9.92367613,127.19,127.17,16.308864]
[1764641125631,9.92367613,127.19,127.17,17.008864]
[1764641126554,9.92367613,127.2,127.17,17.008864]
[1764641127250,17.78379314,127.23,127.18,0.7]
[1764641128045,16.5592601,127.24,127.18,2.4]
[1764641128232,26.48293623,127.24,127.18,12.32367613]
[1764641128433,26.48293623,127.24,127.19,0.7]
[1764641128738,9.92367613,127.23,127.19,0.7]
[1764641128940,9.92367613,127.23,127.2,7.86163522]
[1764641129150,9.92367613,127.22,127.2,7.86163522]
[1764641129454,9.92367613,127.23,127.2,8.56163522]
[1764641131062,9.92367613,127.23,127.21,0.65]
[1764641131439,9.92367613,127.23,127.2,8.51163522]
[1764641131933,9.92367613,127.23,127.21,0.65]
[1764641132134,18.62367613,127.24,127.21,0.65]
[1764641132567,18.62367613,127.26,127.21,10.57367613]
[1764641132851,18.62367613,127.26,127.21,0.65]
[1764641133052,19.21367613,127.26,127.22,0.65]
[1764641134054,18.62367613,127.26,127.22,8.50984132]
[1764641134260,8.7,127.26,127.22,8.50984132]
[1764641134433,8.7,127.26,127.23,0.65]
[1764641134634,6.33427039,127.28,127.23,0.65]
[1764641134835,15.62427039,127.28,127.23,0.65]
[1764641135352,6.92427039,127.27,127.23,0.65]
[1764641135930,6.92427039,127.26,127.22,8.50984132]
[1764641136134,6.92427039,127.26,127.22,7.85984132]
[1764641136349,6.33427039,127.26,127.23,0.65]
[1764641136558,14.7820873,127.27,127.23,0.65]
[1764641136757,6.92427039,127.26,127.23,0.65]
[1764641136971,6.33427039,127.26,127.23,0.65]
[1764641137664,6.33427039,127.28,127.23,23.29313439]
[1764641137873,20.2290826,127.3,127.23,23.29313439]
[1764641137874,22.89035929,127.29,127.23,23.29313439]
[1764641138163,15.03427039,127.29,127.24,8.50916378]
[1764641138563,22.89045596,127.29,127.25,0.65]
[1764641138760,23.48045596,127.29,127.25,0.65]
[1764641138941,6.33427039,127.28,127.25,0.65]
[1764641140062,14.19101194,127.28,127.25,0.65]
[1764641140360,14.78101194,127.28,127.25,0.65]
[1764641140549,0.59,127.27,127.24,7.85879761]
[1764641140961,14.19101194,127.28,127.24,8.50879761]
[1764641141263,6.33427039,127.27,127.24,8.50879761]
[1764641141647,14.78101194,127.28,127.25,0.66]
[1764641141951,14.78101194,127.28,127.24,8.51879761]
[1764641143553,14.78101194,127.28,127.24,10.21879761]
[1764641144371,14.78101194,127.28,127.25,0.66]
[1764641145767,14.19101194,127.28,127.25,0.66]
[1764641145963,14.78101194,127.28,127.25,0.66]
[1764641146356,10.72671268,127.28,127.25,0.66]
[1764641147650,7.85674155,127.28,127.25,0.66]
[1764641149072,16.55626136,127.29,127.25,8.51822166]
[1764641149544,16.55626136,127.29,127.26,0.66]
[1764641150141,8.7,127.29,127.26,8.51789655]
[1764641150566,8.7,127.29,127.27,0.66]
[1764641150773,16.55607884,127.29,127.26,8.51789655]
[1764641150971,8.7,127.29,127.25,7.85829004]
[1764641151271,8.7,127.29,127.27,0.66]
[1764641152473,1e-08,127.31,127.27,8.51702851]
[1764641152654,8.70000001,127.31,127.28,0.66]
[1764641153070,16.55486549,127.31,127.28,0.66]
[1764641153275,19.11966816,127.31,127.28,0.66]
[1764641153957,19.70966816,127.31,127.28,0.66]
[1764641154270,19.11966816,127.31,127.28,0.66]
[1764641158974,11.26480268,127.31,127.28,8.51651262]
[1764641159179,11.26480268,127.31,127.29,0.66]
[1764641159180,8.70000001,127.31,127.29,0.66]
[1764641159359,8.70000001,127.31,127.3,16.308864]
[1764641159360,1e-08,127.31,127.3,16.308864]
[1764641159569,1e-08,127.31,127.3,24.82432354]
[1764641159882,1e-08,127.31,127.3,36.3412327]
[1764641160059,1e-08,127.32,127.31,11.37474759]
[1764641160248,1e-08,127.32,127.31,20.73474759]
[1764641161055,0.2,127.34,127.33,16.308864]
[1764641161257,0.2,127.34,127.33,2.70696424]
[1764641161562,0.2,127.34,127.33,11.22057297]
[1764641162264,0.2,127.34,127.33,8.51360873]
[1764641162468,0.2,127.34,127.33,24.32476507]
[1764641162969,0.2,127.34,127.33,24.82247273]
[1764641163174,0.2,127.34,127.33,16.308864]
[1764641163777,0.2,127.34,127.31,15.81115634]
[1764641163959,0.2,127.34,127.3,15.62616263]
[1764641164156,8.7331484,127.34,127.3,31.93502663]
[1764641164360,8.0531484,127.34,127.31,0.66]
[1764641165586,7.79115634,127.33,127.27,20.30298219]
[1764641165882,7.79115634,127.33,127.28,0.66]
[1764641166385,7.79115634,127.32,127.27,0.66]
[1764641166764,0.68,127.31,127.27,0.66]
[1764641166979,7.79115634,127.31,127.27,0.66]
[1764641167282,7.79115634,127.31,127.26,8.51741865]
[1764641167474,0.88,127.34,127.28,7.11115634]
[1764641167678,8.7331255,127.34,127.3,7.11115634]
[1764641168184,8.7331255,127.34,127.3,7.77115634]
[1764641168783,0.68,127.33,127.3,7.77115634]
[1764641169489,8.0531255,127.34,127.3,7.77115634]
[1764641169793,0.2,127.34,127.32,7.11115634]
[1764641169970,0.2,127.34,127.31,15.62599885]
[1764641170169,8.73343202,127.34,127.29,15.62670815]
[1764641170403,16.49115634,127.33,127.28,7.856502]
[1764641170570,16.49115634,127.33,127.27,16.47115634]
[1764641170769,16.49115634,127.33,127.27,7.77115634]
[1764641171175,0.68,127.32,127.27,7.77115634]
[1764641171377,8.53479846,127.32,127.27,15.62825059]
[1764641171670,8.53479846,127.32,127.27,14.96825059]
[1764641171995,7.83115634,127.31,127.26,16.308864]
[1764641172164,0.72,127.3,127.25,16.66955181]
[1764641172363,0.72,127.3,127.25,15.64955181]
[1764641172666,0.72,127.3,127.26,0.68]
[1764641172865,8.57590974,127.3,127.26,0.68]
[1764641174177,14.96706608,127.3,127.26,0.68]
[1764641174382,9.42,127.29,127.25,7.85839547]
[1764641174584,9.42,127.29,127.25,8.53839547]
[1764641174779,9.42,127.29,127.2,19.65263272]
[1764641174780,7.83115634,127.28,127.2,19.65263272]
[1764641174988,7.85792865,127.26,127.21,7.79115634]
[1764641175289,7.85792865,127.26,127.21,24.10002034]
[1764641175485,8.7,127.29,127.23,7.11115634]
[1764641175486,15.81115634,127.29,127.23,7.11115634]
[1764641175687,0.72,127.28,127.23,7.11115634]
[1764641175989,15.68810787,127.28,127.22,7.79115634]
[1764641176373,15.68810787,127.28,127.23,0.68]
[1764641176594,0.72,127.27,127.23,0.68]
[1764641176888,7.85792865,127.26,127.22,15.65142646]
[1764641177183,7.85792865,127.26,127.22,8.54027012]
[1764641177426,0.72,127.26,127.22,8.54027012]
[1764641178888,15.6880985,127.28,127.23,7.79115634]
[1764641179081,15.6880985,127.28,127.23,15.65043727]
[1764641179387,0.72,127.27,127.23,15.65043727]
[1764641180090,0.72,127.27,127.23,0.68]
[1764641180280,7.11115634,127.26,127.22,7.86014773]
[1764641180590,7.11115634,127.26,127.22,8.54014773]
[1764641180792,0.72,127.25,127.22,8.54014773]
[1764641181207,14.96929584,127.26,127.22,8.54014773]
[1764641181374,15.68929584,127.26,127.22,8.54014773]
[1764641181574,0.72,127.25,127.22,7.86014773]
[1764641182788,9.42,127.25,127.22,7.86014773]
[1764641183289,8.7,127.25,127.22,8.54014773]
[1764641183670,8.7,127.25,127.22,7.86014773]
[1764641183872,9.42,127.25,127.22,7.86014773]
[1764641184067,0.72,127.25,127.22,7.86014773]
[1764641184293,8.7,127.25,127.22,8.54014773]
[1764641185509,16.55863735,127.25,127.2,8.54129276]
[1764641185711,7.83115634,127.24,127.2,7.86129276]
[1764641185873,7.11115634,127.21,127.16,19.65946508]
[1764641186068,8.7,127.2,127.17,0.68]
[1764641186279,8.7,127.2,127.17,8.54316507]
[1764641186696,16.53115634,127.2,127.17,7.86316507]
[1764641186869,9.42,127.2,127.17,7.86316507]
[1764641187489,9.42,127.2,127.17,8.54316507]
[1764641187673,17.28164315,127.2,127.17,8.54316507]
[1764641190303,17.28164315,127.2,127.17,0.68]
[1764641190687,7.78115634,127.19,127.14,17.128864]
[1764641190888,7.78115634,127.19,127.14,0.82]
[1764641191098,0.67,127.18,127.15,0.72]
[1764641191282,0.67,127.18,127.14,0.1]
[1764641191482,0.67,127.18,127.15,0.72]
[1764641192010,8.53306085,127.18,127.15,0.72]
[1764641193398,0.67,127.18,127.15,0.72]
[1764641194305,8.5329856,127.18,127.15,0.72]
[1764641194604,11.18216455,127.16,127.14,0.1]
[1764641194784,11.18216455,127.15,127.14,0.1]
[1764641195286,11.85216455,127.15,127.14,0.1]
[1764641196710,8.5347267,127.15,127.14,0.1]
[1764641196899,28.66899774,127.15,127.14,0.1]
[1764641197710,28.66899774,127.15,127.1,0.1]
[1764641197711,25.11880892,127.11,127.1,0.1]
[1764641198006,45.00097347,127.11,127.1,0.1]
[1764641198189,16.308864,127.08,127.07,0.1]
[1764641198390,16.308864,127.08,127.06,0.1]
[1764641198391,8.80994492,127.07,127.06,0.1]
[1764641198590,8.80994492,127.07,127.03,0.1]
[1764641198591,25.11880892,127.05,127.03,0.1]
[1764641198791,33.13374643,127.02,127.01,0.1]
[1764641198999,35.36380449,127.02,127.01,0.1]
[1764641199204,0.29,127.02,127.01,0.1]
[1764641199379,9.15216157,127.02,127.01,0.1]
[1764641199584,17.96210649,127.02,127.01,0.1]
[1764641199780,29.14427104,127.02,127.01,0.1]
[1764641200013,17.96210649,127.02,127.01,0.1]
[1764641200188,34.27097049,127.02,127.01,0.1]
[1764641200383,45.45313504,127.02,127.01,0.1]
[1764641200696,42.14374643,127.02,127.01,0.1]
[1764641200896,53.32591098,127.02,127.01,0.1]
[1764641204228,44.22596606,127.02,127.01,0.1]
[1764641206430,44.51596606,127.02,127.01,0.1]
[1764641207342,44.22596606,127.02,127.01,0.1]
[1764641207510,53.32591098,127.02,127.01,0.1]
[1764641208210,0.14216157,127.01,127.0,0.1]
[1764641208411,11.61432612,127.01,127.0,0.1]
[1764641209429,28.29766683,127.01,127.0,1e-08]
[1764641210230,0.29,127.0,126.99,1e-08]
[1764641210436,20.33432612,127.0,126.99,1e-08]
[1764641210933,29.14427104,127.0,126.99,1e-08]
[1764641211331,112.01828678,127.0,126.99,1e-08]
[1764641211951,28.29828678,127.0,126.99,1e-08]
[1764641212238,36.72828678,127.0,126.99,1e-08]
[1764641212539,37.01828678,127.0,126.99,1e-08]
[1764641213322,11.18216455,127.01,126.99,0.66000001]
[1764641213519,16.59339579,127.01,126.99,0.66000001]
[1764641213838,11.18216455,127.0,126.99,1e-08]
[1764641214346,20.42427104,127.0,126.99,1e-08]
[1764641214528,36.73313504,127.0,126.99,1e-08]
[1764641214726,20.42427104,127.0,126.99,1e-08]
[1764641215315,33.42560628,126.99,126.98,1e-08]
[1764641215535,64.50993538,126.99,126.98,1e-08]
[1764641216018,53.32777083,126.99,126.98,1e-08]
[1764641216736,16.59463579,126.99,126.98,0.66000001]
[1764641216914,8.72,126.99,126.98,0.66000001]
[1764641220739,27.91896191,126.99,126.98,1e-08]
[1764641221439,37.01890683,126.99,126.98,1e-08]
[1764641221644,123.20107138,126.99,126.98,1e-08]
[1764641222143,126.35975578,126.99,126.98,1e-08]
[1764641223442,111.44313504,126.97,126.96,0.1]
[1764641223643,120.18313504,126.97,126.96,0.1]
[1764641223831,120.47313504,126.97,126.96,0.1]
[1764641224342,45.47313504,126.97,126.96,0.1]
[1764641224939,53.34901123,126.97,126.96,0.1]
[1764641226626,128.34901123,126.97,126.96,0.1]
[1764641226827,44.60901123,126.97,126.96,0.1]
[1764641227046,53.05901123,126.97,126.96,0.1]
[1764641227233,41.73468511,126.97,126.96,0.1]
[1764641227443,52.91684966,126.97,126.96,0.1]
[1764641227925,36.60798566,126.97,126.96,0.76]
[1764641228126,19.05703068,126.99,126.96,0.76]
[1764641228335,19.92216455,126.98,126.96,0.76]
[1764641228532,8.74,126.98,126.96,0.76]
[1764641229848,20.28210947,126.97,126.96,0.1]
[1764641230049,20.42427104,126.97,126.96,0.1]
[1764641230352,95.42427104,126.97,126.96,0.1]
[1764641230855,103.30014723,126.97,126.96,0.1]
[1764641231348,0.14216157,126.93,126.88,0.81]
[1764641231561,8.95210649,126.91,126.88,0.81]
[1764641231734,19.92216455,126.9,126.88,0.81]
[1764641232048,11.18216455,126.89,126.88,0.1]
[1764641232441,20.13427104,126.89,126.88,0.1]
[1764641232640,8.95210649,126.89,126.88,0.81]
[1764641232843,28.87427104,126.89,126.88,0.1]
[1764641233050,36.75511271,126.89,126.88,0.1]
[1764641233253,128.35397671,126.89,126.88,0.1]
[1764641234058,25.26097049,126.89,126.88,0.1]
[1764641234229,8.74,126.89,126.88,0.81]
[1764641235652,19.92216455,126.89,126.88,0.81]
[1764641236149,8.74,126.89,126.88,0.81]
[1764641236453,28.87427104,126.89,126.88,0.1]
[1764641236653,36.75511271,126.89,126.88,0.1]
[1764641237479,28.87427104,126.89,126.88,0.1]
[1764641237977,8.74,126.89,126.88,0.81]
[1764641238136,19.92216455,126.89,126.88,0.81]
[1764641238338,8.74,126.89,126.88,0.81]
[1764641238538,19.92216455,126.89,126.88,0.81]
[1764641238957,8.74,126.89,126.88,0.81]
[1764641239151,8.80994492,126.94,126.88,11.99216455]
[1764641239355,8.76,126.92,126.88,11.99216455]
[1764641239564,11.18216455,126.95,126.89,11.89216455]
[1764641239864,8.76,126.94,126.91,11.18216455]
[1764641240035,8.76,126.95,126.92,11.18216455]
[1764641240228,8.76,126.96,126.92,11.18216455]
[1764641240433,8.76,126.96,126.93,0.71]
[1764641240836,11.18216455,127.01,126.94,11.18216455]
[1764641241158,19.94216455,127.0,126.95,7.87711697]
[1764641241469,19.94216455,127.0,126.95,8.58711697]
[1764641241646,19.94216455,127.0,126.96,0.71]
[1764641242436,11.18216455,126.97,126.96,0.71]
[1764641242641,11.18216455,126.97,126.94,8.5876613]
[1764641242642,19.94216455,126.97,126.94,8.5876613]
[1764641242961,19.94216455,126.97,126.95,0.71]
[1764641243344,8.04,126.97,126.95,11.89216455]
[1764641243545,8.76,126.99,126.95,11.89216455]
[1764641243862,8.76,126.99,126.96,11.89216455]
[1764641244237,8.76,126.99,126.97,0.71]
[1764641245063,11.18216455,126.98,126.93,7.87775984]
[1764641245250,8.76,126.99,126.97,0.71]
[1764641245458,8.76,126.99,126.97,11.89216455]
[1764641245961,8.76,126.99,126.98,0.71]
[1764641247287,8.76,127.01,126.98,11.89216455]
[1764641247768,8.76,127.01,126.99,0.71]
[1764641251261,11.90216455,127.0,126.88,41.50666439]
[1764641251465,11.18216455,126.97,126.94,0.66]
[1764641251641,11.18216455,126.97,126.89,8.80994492]
[1764641251642,11.18216455,126.95,126.9,8.54022064]
[1764641251845,8.76,126.95,126.9,55.7318008]
[1764641252050,8.76,126.95,126.91,11.84216455]
[1764641252488,8.76,126.95,126.92,0.66]
[1764641252768,8.76,126.95,126.93,7.87835815]
[1764641253147,8.76,126.95,126.94,0.66]
[1764641253369,8.76,126.98,126.94,0.66]
[1764641253553,8.76,126.98,126.94,11.84216455]
[1764641253868,8.76,126.98,126.95,11.18216455]
[1764641254170,8.76,126.98,126.95,11.84216455]
[1764641254370,8.76,126.98,126.96,0.66]
[1764641255955,8.76,126.98,126.96,8.53639801]
[1764641256463,8.76,126.98,126.97,0.66]
[1764641256650,8.76,126.98,126.96,0.66]
[1764641256859,8.76,126.98,126.97,0.66]
[1764641257779,8.76,126.98,126.97,8.53587619]
[1764641258157,7.15743014,127.03,126.97,35.3829968]
[1764641258362,8.76,127.02,126.98,0.66]
[1764641258547,0.72,127.07,127.0,7.15743014]
[1764641258754,7.15743014,127.05,127.0,7.15743014]
[1764641258964,7.15743014,127.04,127.01,0.66]
[1764641259274,15.91743014,127.03,126.98,15.69248129]
[1764641259466,8.76,127.03,126.98,15.69248129]
[1764641259660,8.76,127.03,126.99,0.66]
[1764641260156,7.15743014,127.02,126.99,0.66]
[1764641261282,15.91743014,127.03,126.99,8.5344518]
[1764641261763,16.62743014,127.03,126.99,0.71]
[1764641262279,7.15743014,127.01,126.97,7.87565518]
[1764641262590,7.15743014,127.01,126.97,8.58565518]
[1764641262764,8.76,127.0,126.98,0.71]
[1764641263184,16.62743014,127.0,126.96,8.58625067]
[1764641263490,7.15743014,126.99,126.96,8.58625067]
[1764641263864,8.76,127.0,126.97,0.71]
[1764641264570,15.91743014,127.0,126.97,0.71]
[1764641267504,8.76,127.0,126.97,0.71]
[1764641267672,15.91743014,127.0,126.97,0.71]
[1764641269193,8.76,127.0,126.98,7.87525594]
[1764641269375,8.76,127.0,126.98,15.03268608]
[1764641269683,8.76,127.0,126.99,0.71]
[1764641270061,7.15743014,127.04,126.99,0.71]
[1764641270258,7.87030267,127.06,126.99,0.71]
[1764641270259,7.15743014,127.05,126.99,7.86743014]
[1764641270492,8.76,127.04,127.0,7.15743014]
[1764641270669,8.76,127.04,127.0,0.71]
[1764641270862,16.62743014,127.04,127.0,0.71]
[1764641271068,7.15743014,127.03,127.0,0.71]
[1764641271278,16.62743014,127.04,127.0,8.58395091]
[1764641271480,15.91743014,127.04,127.0,8.58395091]
[1764641271679,15.91743014,127.04,126.99,7.87457313]
[1764641271879,0.71,127.03,126.99,0.71]
[1764641272059,7.15743014,127.03,127.0,0.71]
[1764641272797,8.76,127.04,127.0,0.71]
[1764641273169,15.91743014,127.04,127.0,0.71]
[1764641273585,15.91743014,127.04,127.0,8.58362794]
[1764641273985,15.91743014,127.04,127.01,0.71]
[1764641274587,8.76,127.04,127.01,0.71]
[1764641276368,15.91743014,127.04,127.01,0.71]
[1764641278672,15.91743014,127.04,127.0,7.87363634]
[1764641278992,8.76,127.04,127.01,0.71]
[1764641279777,9.47,127.04,127.01,0.71]
[1764641280089,9.47,127.04,127.02,7.87277594]
[1764641280090,8.76,127.04,127.02,7.87277594]
[1764641280467,8.76,127.04,127.02,8.58277594]
[1764641280666,8.76,127.04,127.03,0.71]
[1764641280865,16.62743014,127.04,127.0,28.2674899]
[1764641281297,9.47,127.04,127.0,28.2674899]
[1764641281496,16.62743014,127.04,127.0,28.2674899]
[1764641283792,16.62743014,127.04,127.01,0.71]
[1764641283987,23.46629414,127.07,127.01,7.86743014]
[1764641284289,8.74,127.06,127.01,7.86743014]
[1764641284494,8.74,127.06,127.02,0.71]
[1764641284697,9.45,127.06,127.02,0.71]
[1764641284868,8.74,127.06,127.02,0.71]
[1764641285396,8.74,127.06,127.02,7.86743014]
[1764641285579,8.74,127.06,127.03,7.87215618]
[1764641285900,8.74,127.06,127.03,8.58215618]
[1764641286068,0.91,127.13,127.05,16.308864]
[1764641286375,16.62743014,127.12,127.05,23.46629414]
[1764641286568,16.62743014,127.12,127.06,0.71]
[1764641286765,7.15743014,127.1,127.06,0.71]
[1764641286990,8.76,127.09,127.06,0.71]
[1764641287697,8.76,127.09,127.08,7.15743014]
[1764641287904,9.00994492,127.13,127.08,7.15743014]
[1764641287905,8.76,127.12,127.08,7.15743014]
[1764641290693,0.2,127.13,127.12,7.86743014]
[1764641291605,0.2,127.14,127.13,7.86596397]
[1764641291777,0.2,127.14,127.13,15.70339411]
[1764641291974,0.2,127.14,127.13,8.54596397]
[1764641292282,0.2,127.14,127.13,7.86596397]
[1764641292688,0.2,127.14,127.11,43.81429823]
[1764641292882,0.2,127.14,127.11,0.68]
[1764641293183,8.05743014,127.14,127.1,8.54782061]
[1764641293371,8.05743014,127.14,127.1,15.70525075]
[1764641293372,0.2,127.14,127.1,15.70525075]
[1764641293573,0.2,127.14,127.11,7.83743014]
[1764641293893,7.35743014,127.14,127.11,0.68]
[1764641294066,7.35743014,127.14,127.07,25.068864]
[1764641294067,8.05743014,127.14,127.07,25.068864]
[1764641294395,8.05743014,127.14,127.1,0.68]
[1764641294589,8.05743014,127.14,127.08,15.706489]
[1764641294590,7.15743014,127.13,127.08,15.706489]
[1764641294797,7.15743014,127.13,127.08,15.026489]
[1764641295002,7.85743014,127.13,127.09,0.68]
[1764641295697,7.85743014,127.13,127.1,7.86782061]
[1764641295897,7.15743014,127.13,127.1,7.86782061]
[1764641296098,7.15743014,127.13,127.09,8.54820515]
[1764641296285,7.85743014,127.13,127.09,8.54820515]
[1764641296805,7.85743014,127.13,127.07,7.15743014]
[1764641296806,7.85743014,127.12,127.07,8.54967813]
[1764641296987,15.91743014,127.11,127.07,8.54967813]
[1764641297187,15.91743014,127.11,127.08,0.68]
[1764641297376,8.76,127.11,127.08,0.68]
[1764641298203,8.76,127.11,127.08,8.54860345]
[1764641299314,8.76,127.11,127.09,0.68]
[1764641299601,0.2,127.14,127.1,7.15743014]
[1764641299800,0.2,127.14,127.11,7.15743014]
[1764641300183,0.2,127.14,127.12,7.86658275]
[1764641301101,0.2,127.14,127.11,8.54666445]
[1764641302712,0.9,127.14,127.1,27.53696093]
[1764641302886,8.05743014,127.14,127.1,28.21696093]
[1764641303087,7.35743014,127.14,127.11,0.68]